bitfinex-derivatives/quotes_ETHF0:USTF0_20260308
["timestamp","ask_amount","ask_price","bid_price","bid_amount"]
[1772985986741,0.60146266,1942.8,1941.7,48.327]
[1772985986945,0.60146266,1942.8,1941.8,0.58402293]
[1772985990752,0.60146266,1942.6,1941.8,0.58402293]
[1772985994545,0.60146266,1942.6,1941.7,0.56491646]
[1772985997452,0.60146266,1942.6,1941.6,0.56969483]
[1772986002152,0.60146266,1942.6,1941.6,0.00477837]
[1772986002448,0.5630036,1942.3,1941.6,0.56969483]
[1772986002749,0.56560294,1942.3,1941.6,0.56969483]
[1772986005355,0.56560294,1942.3,1941.6,0.00477837]
[1772986006256,0.56560294,1942.3,1941.6,0.56969483]
[1772986014654,0.00259934,1942.3,1941.6,0.56969483]
[1772986028980,0.58158705,1942.5,1941.6,0.56969483]
[1772986029777,0.58158705,1942.4,1941.6,0.56969483]
[1772986034980,0.58158705,1942.4,1941.6,0.00477837]
[1772986035180,0.58158705,1942.4,1941.6,0.57217705]
[1772986041587,0.58158705,1942.1,1941.6,0.57217705]
[1772986046092,0.58158705,1942.1,1941.6,0.00477837]
[1772986046490,0.58158705,1941.9,1941.4,0.56739868]
[1772986047492,0.58576219,1941.9,1941.4,0.5739234]
[1772986048196,0.58576219,1941.9,1941.4,0.00652472]
[1772986049597,0.58576219,1941.9,1941.4,0.5739234]
[1772986053694,0.60263859,1942.7,1941.9,0.5580783]
[1772986053898,0.60263859,1942.2,1941.7,0.5580783]
[1772986058196,0.25738,1942.8,1941.7,0.5580783]
[1772986058197,0.60263859,1942.4,1941.7,0.5580783]
[1772986065913,0.60263859,1942.0,1941.6,0.5580783]
[1772986066110,0.60263859,1942.0,1941.4,0.56460302]
[1772986067811,0.60263859,1942.3,1941.5,0.5580783]
[1772986073620,0.60263859,1942.2,1941.5,0.5580783]
[1772986074211,4.31996014,1943.0,1941.5,0.5580783]
[1772986074418,0.60263859,1942.8,1941.9,0.5580783]
[1772986074717,0.60263859,1942.6,1941.9,0.5580783]
[1772986075518,0.60263859,1942.4,1941.9,0.5580783]
[1772986078821,2.06210378,1942.7,1941.9,0.5580783]
[1772986079018,0.60263859,1942.5,1941.9,0.5580783]
[1772986089527,2.66474237,1942.5,1941.9,0.5580783]
[1772986089730,0.59406681,1942.4,1941.9,0.5580783]
[1772986117145,0.25736,1942.9,1941.9,0.5580783]
[1772986117347,0.56550595,1942.7,1941.9,0.5580783]
[1772986123046,0.56550595,1942.9,1941.9,0.5580783]
[1772986123344,0.56550595,1942.9,1942.0,0.25747]
[1772986123551,0.56550595,1943.3,1942.1,0.56070912]
[1772986123951,0.56550595,1943.3,1942.2,0.56070912]
[1772986130457,0.56550595,1943.1,1942.2,0.56070912]
[1772986134661,6.742,1943.0,1942.2,0.56070912]
[1772986134958,0.56550595,1942.9,1942.2,0.56070912]
[1772986137958,0.56550595,1942.8,1941.6,0.56070912]
[1772986138164,0.56550595,1942.5,1941.6,0.56070912]
[1772986141670,2.31863911,1942.9,1941.7,0.56070912]
[1772986141671,0.56550595,1942.6,1941.7,0.56070912]
[1772986144768,0.56550595,1942.6,1941.7,7.90970912]
[1772986144968,0.56550595,1942.6,1941.8,0.56212116]
[1772986151174,0.5774523,1943.0,1941.8,0.56212116]
[1772986154766,0.5774523,1943.0,1942.0,0.56212116]
[1772986156575,0.5774523,1943.1,1942.3,0.56212116]
[1772986156770,0.5774523,1943.1,1942.4,0.56212116]
[1772986158473,0.5774523,1943.2,1942.4,0.56212116]
[1772986163678,0.5774523,1943.6,1942.7,0.56212116]
[1772986164079,0.5774523,1943.6,1943.1,0.56212116]
[1772986164276,0.5774523,1943.6,1943.1,0.56782581]
[1772986164681,0.5774523,1943.3,1942.7,0.56212116]
[1772986165074,0.5774523,1943.3,1942.6,0.97389547]
[1772986165579,0.5774523,1943.3,1942.6,0.56212116]
[1772986165780,0.58292725,1943.3,1942.6,0.56782062]
[1772986183291,0.58292725,1943.3,1942.7,7.455]
[1772986183592,0.58292725,1943.3,1942.8,0.56576117]
[1772986194697,0.58292725,1943.3,1942.7,7.455]
[1772986195099,0.58292725,1943.3,1942.7,8.02076117]
[1772986197801,0.58292725,1943.3,1942.8,0.56576117]
[1772986201004,0.56724493,1943.8,1943.1,0.56576117]
[1772986201206,0.56724493,1943.8,1943.2,0.56576117]
[1772986201905,0.56807787,1943.8,1943.2,0.56576117]
[1772986202103,0.56724493,1943.5,1942.9,0.56576117]
[1772986202306,0.56724493,1943.5,1942.7,0.56576117]
[1772986203806,0.00083294,1943.8,1942.9,0.5615454]
[1772986204107,0.5519158,1943.7,1943.1,0.5615454]
[1772986211323,0.5519158,1943.7,1943.3,0.59096089]
[1772986211723,0.55735699,1943.8,1943.3,0.59096089]
[1772986211924,0.00083294,1943.8,1943.3,0.59096089]
[1772986212421,0.55735699,1943.8,1943.3,0.59096089]
[1772986217022,0.00083294,1943.8,1943.3,0.59096089]
[1772986218629,0.55735699,1943.8,1943.3,0.59096089]
[1772986231541,0.55735699,1943.8,1943.1,0.59096089]
[1772986236444,0.00083294,1943.8,1943.1,0.59096089]
[1772986238148,0.58667206,1943.8,1943.1,0.59096089]
[1772986275377,0.58667206,1943.8,1942.7,0.25737]
[1772986275674,0.58667206,1943.8,1942.9,0.5883559]
[1772986276880,0.58667206,1943.8,1942.7,0.5883559]
[1772986277579,0.6019165,1943.7,1942.6,0.59405536]
[1772986285587,0.6019165,1943.5,1942.6,0.59405536]
[1772986285982,0.6019165,1943.3,1942.6,0.59405536]
[1772986291588,0.00083294,1943.8,1942.8,0.5883559]
[1772986291589,0.6019165,1943.4,1942.8,0.5883559]
[1772986299698,0.6019165,1943.4,1942.6,0.56311435]
[1772986303102,0.55956633,1943.3,1942.6,0.56311435]
[1772986303989,0.55956633,1943.3,1942.6,0.00569946]
[1772986310606,0.55956633,1943.1,1942.6,0.00569946]
[1772986311008,0.55956633,1942.9,1942.2,0.96357879]
[1772986311202,0.55956633,1942.7,1942.1,7.735]
[1772986311708,0.55956633,1942.5,1941.8,7.739]
[1772986312209,0.55956633,1942.5,1941.8,7.74535707]
[1772986312807,0.25737,1942.8,1941.5,40.8]
[1772986312808,0.55956633,1942.1,1941.5,0.55741489]
[1772986313009,0.17275256,1942.1,1941.5,0.55741489]
[1772986314005,0.17640061,1942.1,1941.5,0.56340609]
[1772986314205,0.00364805,1942.1,1941.6,0.55741489]
[1772986314501,0.56321438,1942.1,1941.6,0.55741489]
[1772986315916,0.55956633,1942.3,1941.8,0.55741489]
[1772986316813,0.56551652,1942.3,1941.8,0.55741489]
[1772986324319,0.56551652,1942.3,1941.6,0.54465903]
[1772986325525,0.56551652,1942.3,1941.5,0.0059912]
[1772986325731,0.58552542,1941.9,1941.5,0.58872246]
[1772986326130,0.58552542,1941.9,1941.5,0.0059912]
[1772986326331,0.58552542,1941.9,1941.3,0.58273126]
[1772986327331,0.58552542,1941.9,1941.3,0.58859746]
[1772986329923,0.26339019,1942.3,1941.6,0.58273126]
[1772986330123,0.58552542,1942.2,1941.6,0.58273126]
[1772986331333,0.58552542,1942.0,1941.4,0.58273126]
[1772986332531,0.58552542,1942.0,1941.3,0.0058662]
[1772986332830,0.58552542,1942.0,1941.3,0.58859746]
[1772986334030,0.58552542,1942.0,1941.3,0.0058662]
[1772986334427,0.58552542,1941.8,1941.3,0.0058662]
[1772986334832,0.58552542,1941.6,1940.8,0.58273126]
[1772986335026,0.58552542,1941.4,1940.8,0.58273126]
[1772986335834,0.58552542,1941.4,1940.8,0.58829283]
[1772986337036,0.58552542,1941.4,1940.8,0.00556157]
[1772986337933,0.58552542,1941.0,1940.3,0.58273126]
[1772986338436,0.58552542,1941.0,1939.9,8.15697374]
[1772986338437,0.58552542,1941.6,1940.9,0.58273126]
[1772986338832,0.58552542,1941.6,1940.9,0.58920516]
[1772986341344,0.58552542,1942.2,1941.5,0.58273126]
[1772986342133,0.58552542,1942.0,1941.3,0.58273126]
[1772986356745,0.54597868,1942.2,1941.3,0.58273126]
[1772986357147,0.54597868,1942.2,1941.4,0.58090034]
[1772986370061,0.00595019,1942.3,1941.5,0.58090034]
[1772986370256,0.54579783,1942.3,1941.5,0.58090034]
[1772986380070,0.02355654,1942.3,1941.5,0.58090034]
[1772986381067,0.02870653,1942.3,1941.5,0.58090034]
[1772986382580,0.02062856,1942.2,1941.2,8.36033544]
[1772986382778,0.02062856,1942.2,1941.3,0.59433544]
[1772986390180,0.00105982,1942.2,1941.3,0.59433544]
[1772986400194,5.478e-05,1942.2,1941.3,0.59433544]
[1772986402391,0.00514999,1942.3,1941.4,0.5943146]
[1772986406997,0.02605694,1942.3,1941.4,0.5943146]
[1772986407597,0.02647572,1942.1,1941.4,0.5943146]
[1772986410202,0.00100323,1942.1,1941.4,0.5943146]
[1772986415304,1.25211866,1942.2,1941.4,0.5943146]
[1772986416708,0.00514999,1942.3,1941.4,2.65637704]
[1772986417307,0.00514999,1942.3,1941.5,0.60584548]
[1772986417805,2.06206244,1942.2,1941.5,0.60584548]
[1772986418402,2.06206244,1942.0,1941.5,0.60584548]
[1772986419408,2.06206244,1942.2,1941.5,0.60584548]
[1772986425515,0.00514999,1942.3,1941.5,0.60584548]
[1772986431417,2.06206244,1941.6,1941.0,0.61057899]
[1772986433813,0.25751,1941.7,1941.0,0.61057899]
[1772986434617,2.06206244,1941.6,1941.0,0.61057899]
[1772986437114,2.06206244,1941.4,1941.0,0.61057899]
[1772986437321,2.06206244,1941.6,1941.0,0.61057899]
[1772986437817,2.06206244,1941.6,1940.9,0.62764779]
[1772986439818,2.06206244,1941.2,1940.7,0.62018747]
[1772986440018,2.06206244,1941.2,1940.3,0.62018747]
[1772986440220,2.06206244,1941.0,1940.3,0.62018747]
[1772986440425,0.5296639,1940.5,1939.6,0.55535951]
[1772986440816,0.53554212,1940.5,1939.6,0.5609234]
[1772986441013,2.06206244,1940.1,1939.5,0.55535951]
[1772986441211,2.31975244,1940.4,1939.1,0.55535951]
[1772986441212,0.59240852,1939.8,1939.1,0.55535951]
[1772986441422,0.59240852,1940.2,1939.4,0.55535951]
[1772986441917,0.59240852,1940.2,1939.5,0.55535951]
[1772986442121,0.59240852,1940.2,1939.5,0.55989138]
[1772986447527,0.563178,1940.4,1939.7,0.55715342]
[1772986454530,0.00587822,1940.5,1939.9,0.55715342]
[1772986454730,0.563178,1940.9,1940.4,2.06206244]
[1772986454924,0.563178,1940.9,1940.5,0.55715342]
[1772986455725,0.56976765,1940.9,1940.5,0.55715342]
[1772986456229,0.56976765,1940.9,1940.4,0.55715342]
[1772986473644,0.00658965,1940.9,1940.4,0.55715342]
[1772986473943,0.57960289,1941.2,1940.4,0.55715342]
[1772986474843,0.58470061,1941.2,1940.4,0.55715342]
[1772986475641,0.00509772,1941.2,1940.4,0.55715342]
[1772986479953,0.58470061,1941.2,1940.4,0.55715342]
[1772986481852,0.57960289,1941.1,1940.4,0.55715342]
[1772986482252,0.57960289,1940.9,1939.9,0.55921455]
[1772986485852,0.57960289,1940.5,1939.9,0.55921455]
[1772986486058,0.57960289,1940.5,1939.6,0.55921455]
[1772986501573,0.57960289,1940.3,1939.6,0.55921455]
[1772986507974,0.57960289,1940.3,1939.4,7.667]
[1772986508175,0.57160192,1940.1,1939.3,0.58878404]
[1772986508370,0.57160192,1940.0,1939.3,0.58878404]
[1772986508674,0.57160192,1940.5,1939.3,0.58878404]
[1772986509276,0.57160192,1940.5,1939.3,0.5944173]
[1772986512977,0.57160192,1940.3,1939.3,0.5944173]
[1772986516674,0.57160192,1940.3,1939.3,2.65877098]
[1772986516875,0.57160192,1940.3,1939.5,0.58878404]
[1772986520684,0.82929192,1940.4,1939.5,0.58878404]
[1772986521281,0.57160192,1940.3,1939.5,0.58878404]
[1772986522187,6.745,1940.8,1939.5,0.58878404]
[1772986522188,0.57160192,1940.1,1939.5,0.58878404]
[1772986523481,0.82931192,1940.2,1939.5,0.58878404]
[1772986523684,0.57160192,1940.3,1939.5,0.58878404]
[1772986528388,0.57160192,1940.6,1939.7,0.58878404]
[1772986529485,0.25765,1940.7,1940.0,0.58878404]
[1772986529486,0.82925192,1940.7,1940.0,0.58878404]
[1772986530890,0.00509772,1941.2,1939.9,2.06435368]
[1772986530891,0.57160192,1941.1,1940.3,0.58878404]
[1772986531088,0.57160192,1940.7,1939.7,0.58878404]
[1772986531285,0.57160192,1940.5,1939.7,0.58878404]
[1772986531683,0.57160192,1940.5,1939.8,0.58878404]
[1772986531889,0.57160192,1940.5,1940.0,0.58878404]
[1772986532192,0.57160192,1940.5,1939.8,0.58878404]
[1772986536288,0.54697019,1940.3,1939.8,0.58878404]
[1772986536495,0.54697019,1940.2,1939.5,0.57879658]
[1772986537493,0.54697019,1940.1,1939.5,0.57879658]
[1772986537701,0.54697019,1940.3,1939.8,0.57879658]
[1772986549106,0.54697019,1940.2,1939.6,0.57879658]
[1772986549311,0.25771,1940.3,1939.6,0.57879658]
[1772986549508,0.80468019,1940.3,1939.6,0.57879658]
[1772986550010,7.00264,1940.8,1939.8,0.57879658]
[1772986550211,0.54697019,1940.7,1939.8,0.57879658]
[1772986551214,0.54697019,1940.6,1939.8,0.57879658]
[1772986557917,0.54697019,1940.4,1939.8,0.57879658]
[1772986560121,0.54697019,1940.4,1939.4,0.57879658]
[1772986561223,2.32307402,1940.5,1939.4,0.57879658]
[1772986561224,0.54697019,1940.2,1939.4,0.57879658]
[1772986561428,0.54697019,1940.0,1939.4,0.57879658]
[1772986563324,0.56900924,1939.8,1939.3,0.00563326]
[1772986563523,0.56900924,1939.6,1939.2,0.38569276]
[1772986564322,0.56900924,1939.6,1938.8,0.57046072]
[1772986564525,0.57398107,1939.6,1938.8,0.57600314]
[1772986564922,2.06540402,1939.5,1938.8,0.57600314]
[1772986565124,0.56531562,1939.0,1938.6,0.45139551]
[1772986565323,0.56531562,1939.0,1938.3,0.55139551]
[1772986566023,0.56531562,1938.8,1938.0,0.08975029]
[1772986566227,0.25789,1938.9,1938.0,0.55139551]
[1772986566228,0.56531562,1938.5,1938.0,0.55139551]
[1772986567218,0.56531562,1938.5,1937.7,0.55139551]
[1772986569530,0.56531562,1938.2,1937.7,0.55139551]
[1772986569729,0.57040914,1938.2,1937.7,0.55139551]
[1772986570231,0.56531562,1938.0,1937.6,0.55787912]
[1772986570424,0.56531562,1938.1,1937.6,0.55787912]
[1772986570628,0.56531562,1937.9,1937.4,0.55139551]
[1772986570825,0.56531562,1937.9,1937.0,0.55139551]
[1772986571026,0.56531562,1937.7,1937.0,0.55139551]
[1772986571624,0.56531562,1937.7,1937.0,0.55801439]
[1772986572827,0.56531562,1938.1,1937.0,0.55801439]
[1772986574335,0.56531562,1938.3,1937.1,0.55139551]
[1772986574534,0.56531562,1938.6,1937.1,0.55139551]
[1772986575829,0.57099903,1938.6,1937.1,0.55139551]
[1772986576630,0.56531562,1938.2,1937.1,0.55139551]
[1772986579231,0.56531562,1938.0,1937.1,0.55139551]
[1772986579427,0.25795,1938.5,1937.0,0.55801439]
[1772986579625,0.56531562,1937.9,1937.0,0.55801439]
[1772986580433,0.56531562,1937.7,1937.0,0.55801439]
[1772986585243,0.56531562,1937.5,1936.4,0.55139551]
[1772986585636,0.56531562,1937.3,1936.4,0.55139551]
[1772986586039,0.56531562,1937.1,1936.4,0.55783856]
[1772986586242,0.56937766,1937.1,1936.4,0.55783856]
[1772986586437,0.80523302,1937.0,1936.4,0.55783856]
[1772986586637,0.56531562,1936.9,1936.4,0.55783856]
[1772986587437,0.2399174,1937.0,1936.4,0.55783856]
[1772986587637,0.56531562,1937.3,1936.4,0.55783856]
[1772986588238,0.56531562,1937.1,1936.4,0.55783856]
[1772986588840,0.56531562,1937.5,1936.4,0.55783856]
[1772986589040,0.56531562,1937.5,1936.6,0.55139551]
[1772986589344,0.56531562,1937.9,1936.8,0.55139551]
[1772986589733,0.57174454,1937.9,1936.8,0.55139551]
[1772986590444,0.56531562,1939.1,1937.6,0.55139551]
[1772986590643,0.56531562,1939.1,1938.0,0.55139551]
[1772986590942,0.56531562,1939.1,1938.1,0.55139551]
[1772986591442,0.56995824,1939.1,1938.1,0.55803852]
[1772986592341,0.56995824,1939.1,1938.3,0.55139551]
[1772986595249,0.58383667,1939.7,1938.5,0.58722766]
[1772986595447,0.58383667,1939.5,1938.5,0.58722766]
[1772986596356,0.58830216,1939.5,1938.5,0.58722766]
[1772986601156,0.58383667,1939.3,1938.6,8.047]
[1772986601457,0.58383667,1939.3,1938.6,8.63422766]
[1772986601657,0.58383667,1939.3,1938.7,0.58722766]
[1772986601859,0.58383667,1939.3,1938.6,8.047]
[1772986602360,0.58383667,1939.3,1938.6,8.63422766]
[1772986603463,0.58383667,1939.3,1938.5,0.58722766]
[1772986604963,0.58383667,1939.1,1938.5,0.58722766]
[1772986605160,0.58383667,1938.9,1938.1,8.67387067]
[1772986605367,0.58383667,1938.7,1938.1,0.00664301]
[1772986606658,0.58383667,1938.7,1938.1,0.59387067]
[1772986606860,0.2579,1938.8,1938.1,0.59387067]
[1772986607055,0.58383667,1939.2,1938.3,0.58722766]
[1772986610165,0.58383667,1939.4,1938.3,0.58722766]
[1772986613566,0.58383667,1939.4,1938.4,40.8]
[1772986613763,0.58383667,1939.4,1938.5,0.58722766]
[1772986618566,0.58383667,1939.4,1938.5,8.73922766]
[1772986618866,0.58383667,1939.4,1938.6,0.58722766]
[1772986621862,0.58383667,1939.4,1938.3,0.58722766]
[1772986629168,0.58291884,1938.8,1938.1,0.58017996]
[1772986629373,0.58291884,1938.7,1938.1,0.58017996]
[1772986629671,0.58291884,1938.9,1938.1,0.58017996]
[1772986631376,0.58291884,1939.3,1938.1,0.58017996]
[1772986652384,0.58291884,1939.3,1938.3,0.57353695]
[1772986653187,0.58291884,1939.3,1938.4,0.58663212]
[1772986656293,0.58291884,1939.3,1938.6,0.58663212]
[1772986659193,0.55403787,1939.8,1938.7,0.58663212]
[1772986659393,0.55403787,1939.8,1938.9,0.58663212]
[1772986660088,0.55403787,1939.9,1938.9,0.58663212]
[1772986660294,0.00456679,1939.9,1939.1,0.58663212]
[1772986660591,0.55860466,1939.9,1939.1,0.58663212]
[1772986660785,0.55403787,1939.7,1938.8,0.58663212]
[1772986681915,0.55403787,1939.5,1938.8,0.58663212]
[1772986682308,0.55403787,1939.3,1938.6,8.86363212]
[1772986682510,0.55403787,1939.3,1938.7,0.58663212]
[1772986683214,0.58621888,1939.7,1939.0,0.58023739]
[1772986684514,0.593947,1939.8,1939.2,0.55053346]
[1772986686916,0.59851379,1939.9,1939.2,0.55053346]
[1772986705633,0.59851379,1939.9,1939.4,0.55053346]
[1772986719543,0.59851379,1939.9,1939.1,0.56032938]
[1772986723048,0.55683096,1940.0,1939.4,0.56032938]
[1772986724047,0.56267891,1940.0,1939.4,0.56032938]
[1772986728855,0.55683096,1940.2,1939.4,0.56032938]
[1772986729959,0.56155653,1940.2,1939.4,0.56032938]
[1772986730354,0.56155653,1940.2,1939.5,0.56032938]
[1772986730555,0.56155653,1940.2,1939.5,0.56543061]
[1772986732857,0.56155653,1940.2,1939.7,0.56032938]
[1772986734164,2.32348974,1941.1,1939.7,0.56032938]
[1772986734468,0.55683096,1940.9,1939.7,0.56032938]
[1772986735261,0.56198433,1940.9,1939.7,0.56032938]
[1772986736058,0.55683096,1940.7,1939.7,0.56032938]
[1772986736268,0.55683096,1940.5,1939.5,8.78943061]
[1772986737267,0.55683096,1940.5,1939.6,0.56032938]
[1772986747169,0.55683096,1940.5,1939.5,0.00510123]
[1772986747471,2.06588974,1940.8,1939.5,0.00510123]
[1772986747472,0.57074626,1940.1,1939.5,0.00510123]
[1772986747675,0.57074626,1940.1,1939.1,0.55870529]
[1772986747867,0.57074626,1939.9,1939.0,8.78270529]
[1772986748672,0.57074626,1939.9,1939.0,8.78823857]
[1772986748874,0.57074626,1939.9,1939.1,0.55870529]
[1772986751472,0.57074626,1940.4,1939.2,0.55870529]
[1772986751976,0.57074626,1940.4,1939.5,0.55870529]
[1772986777607,0.57074626,1940.4,1939.2,0.25784]
[1772986777608,0.57074626,1940.4,1939.9,0.56812158]
[1772986779110,0.5551216,1940.8,1940.1,0.56812158]
[1772986780713,0.5551216,1940.8,1940.5,0.56812158]
[1772986781007,0.00515337,1940.9,1940.5,0.00424525]
[1772986781310,0.00515337,1940.9,1940.3,0.60497413]
[1772986781908,2.07020091,1940.9,1940.1,0.60501003]
[1772986782112,2.07020091,1940.9,1940.1,0.6103831]
[1772986782910,0.00515337,1940.9,1940.3,0.60501003]
[1772986784110,2.07020091,1940.9,1940.3,0.60501003]
[1772986785217,0.00515337,1940.9,1940.3,0.60501003]
[1772986786217,2.06504754,1941.4,1940.5,0.61345251]
[1772986787014,2.07121632,1941.4,1940.5,0.61345251]
[1772986791419,2.06504754,1941.2,1940.5,0.61345251]
[1772986798824,2.06504754,1941.2,1940.2,0.61202592]
[1772986800923,0.25762,1940.9,1940.2,0.61202592]
[1772986801129,0.25767,1940.5,1940.1,0.0006475]
[1772986801426,0.25767,1940.5,1939.5,2.06504754]
[1772986801427,0.25767,1940.5,1939.6,0.61161008]
[1772986802424,2.06504754,1940.9,1940.0,0.61125244]
[1772986803322,2.32265754,1941.1,1940.0,0.61125244]
[1772986803623,0.25761,1941.1,1940.2,0.61391119]
[1772986803823,2.32265754,1941.1,1940.2,0.61391119]
[1772986805426,2.06504754,1940.3,1939.6,0.61748994]
[1772986805627,2.32272754,1940.5,1939.6,0.61748994]
[1772986807326,0.25768,1940.5,1939.6,0.61748994]
[1772986809625,2.06504754,1940.7,1939.8,0.61178561]
[1772986815834,2.06504754,1940.9,1939.8,0.61178561]
[1772986818235,2.06504754,1940.9,1940.0,0.61142516]
[1772986818739,0.25761,1941.1,1940.2,0.61142516]
[1772986818935,0.25761,1941.1,1940.4,0.61142516]
[1772986820636,6.75616878,1941.4,1940.4,0.61142516]
[1772986820832,2.06504754,1941.1,1940.4,0.61142516]
[1772986821535,2.32261754,1941.3,1940.4,0.61142516]
[1772986823439,0.00172065,1941.2,1940.4,0.61142516]
[1772986824840,2.06504754,1941.3,1940.4,0.61142516]
[1772986825139,0.00616878,1941.4,1940.9,0.60447282]
[1772986825140,0.00788943,1941.4,1940.9,0.60447282]
[1772986825340,0.00172065,1941.3,1940.9,0.60447282]
[1772986829839,0.00616878,1941.4,1940.9,0.60447282]
[1772986830040,0.00986578,1941.4,1940.9,0.60447282]
[1772986831343,0.00616878,1941.4,1940.9,0.60447282]
[1772986835149,0.55235532,1941.0,1940.4,0.5925715]
[1772986835346,0.55235532,1941.0,1939.6,0.004081]
[1772986835347,0.55235532,1940.5,1939.8,0.5925715]
[1772986839758,0.55235532,1940.7,1939.8,0.5925715]
[1772986842557,0.55235532,1940.8,1939.8,0.5925715]
[1772986842754,0.55235532,1940.8,1939.9,0.5925715]
[1772986843163,0.80997532,1940.9,1939.9,0.5925715]
[1772986843861,0.55235532,1940.9,1939.9,0.5925715]
[1772986844856,0.55235532,1940.9,1940.1,0.5925715]
[1772986850161,0.55235532,1940.7,1940.1,0.5925715]
[1772986851567,0.25763,1940.8,1940.1,0.5925715]
[1772986851767,0.80998532,1940.8,1940.1,0.5925715]
[1772986851967,0.55235532,1940.7,1940.1,0.5925715]
[1772986855368,0.55235532,1940.9,1940.1,0.5925715]
[1772986856864,0.55235532,1941.1,1940.1,0.5925715]
[1772986860376,0.25757,1941.3,1940.2,0.5925715]
[1772986860377,0.55235532,1941.2,1940.2,0.5925715]
[1772986882285,0.55081011,1941.0,1940.2,0.5925715]
[1772986891893,0.25759,1941.1,1940.2,0.5925715]
[1772986892196,0.52209998,1941.3,1940.2,0.5925715]
[1772986899608,0.52209998,1941.3,1940.5,0.57468893]
[1772986907420,0.52773851,1941.2,1940.5,0.57468893]
[1772986907610,0.52773851,1941.0,1940.5,0.57468893]
[1772986907812,0.03090036,1941.0,1940.5,0.57468893]
[1772986908016,0.25758,1941.3,1940.5,0.57468893]
[1772986908613,0.28848036,1941.3,1940.5,0.57468893]
[1772986915521,0.28848036,1941.3,1940.7,0.58988937]
[1772986917320,0.25758,1941.3,1940.7,0.58988937]
[1772986920914,0.28890189,1941.3,1940.7,0.58988937]
[1772986931922,0.02293468,1941.2,1940.7,0.58988937]
[1772986934133,0.28053819,1941.3,1940.7,0.58988937]
[1772986937637,0.02229469,1941.2,1940.4,0.604282]
[1772986937834,0.00616878,1941.4,1939.9,0.604282]
[1772986937835,0.02229469,1940.6,1939.9,0.604282]
[1772986938030,2.08596463,1940.5,1939.9,0.604282]
[1772986938235,0.02229469,1940.4,1939.9,0.604282]
[1772986938434,0.02229469,1940.4,1939.6,0.004081]
[1772986938435,0.02229469,1940.4,1939.7,0.604282]
[1772986939635,0.57626212,1940.0,1939.6,0.608363]
[1772986939835,0.58128117,1940.0,1939.6,0.004081]
[1772986940035,0.58128117,1940.0,1939.5,0.604282]
[1772986941135,0.58128117,1940.0,1939.5,0.6085705]
[1772986942136,0.00501905,1940.0,1939.5,0.6085705]
[1772986945340,0.57218417,1940.0,1939.5,0.6085705]
[1772986948149,0.00501905,1940.0,1939.5,0.6085705]
[1772986948552,0.57295166,1940.0,1939.5,0.6085705]
[1772986948848,0.00501905,1940.0,1939.5,0.6085705]
[1772986949048,0.57295166,1940.0,1939.5,0.6085705]
[1772986949349,0.00501905,1940.0,1939.5,0.6085705]
[1772986951641,0.57878251,1940.0,1939.5,0.6085705]
[1772986951845,0.00501905,1940.0,1939.5,0.6085705]
[1772986956957,0.80431446,1940.6,1939.7,0.56330234]
[1772986957151,0.80431446,1940.6,1939.9,0.56330234]
[1772986957152,0.54665446,1940.3,1939.9,0.56330234]
[1772986957353,0.54665446,1940.3,1939.7,0.56330234]
[1772986958053,0.55296724,1940.3,1939.7,0.56330234]
[1772986978771,0.00631278,1940.3,1939.7,0.56330234]
[1772986981876,0.54665446,1940.9,1939.8,0.56330234]
[1772986982179,0.2576,1941.1,1939.8,0.56330234]
[1772986982372,0.2576,1941.1,1939.9,5.43689264]
[1772986982676,0.54665446,1941.5,1940.1,0.56330234]
[1772986982877,0.54665446,1941.5,1940.0,2.06592678]
[1772986982878,0.55169455,1941.5,1940.3,0.60431245]
[1772986984479,0.55169455,1941.5,1940.4,0.60431245]
[1772986988384,0.55169455,1941.5,1940.6,0.56138295]
[1772986989677,0.25765,1940.8,1939.3,18.73622086]
[1772986989884,2.06592678,1940.4,1939.6,0.56138295]
[1772986990180,0.34519395,1940.3,1939.6,0.56138295]
[1772986990375,2.06592678,1940.4,1938.9,8.59881939]
[1772986990376,0.55541088,1940.1,1939.4,0.56138295]
[1772986990573,0.55541088,1940.0,1939.0,0.56138295]
[1772986991683,0.55541088,1940.0,1939.0,0.56785842]
[1772986994281,0.00441011,1940.1,1939.2,0.56138295]
[1772986994482,0.00441011,1940.1,1939.5,0.56138295]
[1772986994683,0.00441011,1940.1,1939.6,0.56138295]
[1772986995383,0.55541088,1940.5,1939.6,0.56138295]
[1772986995583,0.25763,1940.8,1939.6,0.56138295]
[1772986995886,0.81304088,1940.8,1939.6,0.56138295]
[1772986996087,0.55541088,1940.7,1939.6,0.56138295]
[1772986996386,0.56014145,1940.7,1939.8,0.56138295]
[1772987001596,0.56014145,1940.7,1940.0,0.56138295]
[1772987006090,0.00473057,1940.7,1940.0,0.56138295]
[1772987007496,0.56014145,1940.7,1940.0,0.56138295]
[1772987011201,0.56014145,1940.7,1940.1,7.705]
[1772987011404,0.56014145,1940.7,1940.2,0.56138295]
[1772987016902,6.44134056,1941.8,1940.2,0.56138295]
[1772987016903,0.56316974,1941.4,1940.2,0.56138295]
[1772987017505,0.56316974,1941.4,1940.4,0.55268861]
[1772987017705,0.56316974,1941.4,1940.5,0.55268861]
[1772987018009,0.56739954,1941.4,1940.7,0.55268861]
[1772987018409,0.0042298,1941.4,1940.7,0.55268861]
[1772987019611,0.0042298,1941.4,1941.0,0.55268861]
[1772987020208,0.56739954,1941.4,1941.0,0.55268861]
[1772987020510,0.56316974,1941.8,1941.1,0.55268861]
[1772987021411,0.56503852,1941.8,1941.1,0.55268861]
[1772987022204,0.56503852,1941.8,1941.4,0.55268861]
[1772987022410,0.00186878,1941.8,1941.4,0.55268861]
[1772987023010,0.56316974,1942.1,1941.6,0.55268861]
[1772987026307,0.56316974,1942.1,1941.5,7.781]
[1772987026512,0.56316974,1942.1,1941.4,8.34368861]
[1772987026712,0.56316974,1942.1,1941.5,0.55268861]
[1772987030021,0.56316974,1942.1,1941.6,0.55268861]
[1772987038821,0.56316974,1942.1,1941.4,0.55268861]
[1772987039025,0.56316974,1942.1,1941.5,8.36168861]
[1772987041120,0.56316974,1942.1,1941.6,0.55268861]
[1772987051533,0.5601957,1942.6,1942.0,0.56474361]
[1772987051729,0.5601957,1942.6,1942.1,0.56474361]
[1772987051936,0.5601957,1942.1,1941.4,0.56474361]
[1772987052134,0.5601957,1942.1,1941.6,0.56474361]
[1772987052334,0.5601957,1942.1,1941.6,8.37174361]
[1772987053033,0.56400084,1942.1,1941.6,8.37717762]
[1772987053233,0.5601957,1941.9,1941.4,8.37274361]
[1772987053434,0.5601957,1941.9,1941.0,0.56474361]
[1772987053629,0.5601957,1941.9,1941.2,8.37274361]
[1772987054034,0.5601957,1941.9,1941.3,0.56474361]
[1772987054540,0.5601957,1941.9,1941.3,0.56844048]
[1772987055137,0.00380514,1942.1,1941.4,0.56474361]
[1772987055138,0.5601957,1942.0,1941.4,0.56474361]
[1772987056038,0.56400084,1942.1,1941.4,0.56474361]
[1772987059138,0.00380514,1942.1,1941.4,0.56474361]
[1772987062644,0.00380514,1942.1,1941.6,0.56474361]
[1772987064544,0.5601957,1942.3,1941.6,0.56474361]
[1772987064845,0.5601957,1942.4,1941.6,0.56474361]